[Event "Romanian Women Championship 2024"]
[Site "Eforie Nord"]
[Date "2024.02.25"]
[Round "2.11"]
[White "Bira, Andrada-Paraschiva"]
[Black "Batagan, Ilinca-Petra"]
[Result "1-0"]
[ECO "A85"]
[WhiteElo "1590"]
[BlackElo "1859"]
[Annotator "NA RC"]
[PlyCount "69"]
[EventDate "2024.02.24"]
[EventType "swiss"]
[EventCountry "ROU"]
[SourceTitle "playchess.com"]
[Source "ChessBase"]
[SourceQuality "1"]
[TimeControl "40/5400+30:900+30"]

1. c4 {[%emt 0:00:04]} e6 {[%emt 0:00:24]} 2. Nf3 {[%emt 0:00:23]} d5 {[%emt 0:00:39]} 3. d4 {[%emt 0:00:44]} c6 {[%emt 0:01:09]} 4. e3 {[%emt 0:01:27]} Bd6 {[%emt 0:02:30]} 5. Nc3 {[%emt 0:00:36]} f5 {[%emt 0:01:18]} 6. Bd3 {[%emt 0:02:57]} Nf6 {[%emt 0:00:33]} 7. Ne5 {[%emt 0:01:21]} O-O {[%emt 0:03:02]} 8. O-O {[%emt 0:01:31]} Bd7 {[%emt 0:05:54]} 9. Qb3 {[%emt 0:05:19]} b6 {[%emt 0:08:02]} 10. f3 {[%emt 0:03:07]} Qe7 {[%emt 0:11:19]} 11. Bd2 {[%emt 0:07:15]} dxc4 {[%emt 0:10:19]} 12. Bxc4 {[%emt 0:01:41]} b5 {[%emt 0:00:20]} 13. Bd3 {[%emt 0:00:25]} Kh8 {[%emt 0:01:36]} 14. Rac1 {[%emt 0:00:59]} Na6 {[%emt 0:07:07]} 15. Ne2 {[%emt 0:00:30]} Bxe5 {[%emt 0:02:24]} 16. dxe5 {[%emt 0:00:10]} Nd5 {[%emt 0:00:14]} 17. Bb1 {[%emt 0:13:48]} Nb6 {[%emt 0:07:26]} 18. Rfd1 {[%emt 0:13:21]} Nc4 {[%emt 0:01:27]} 19. Be1 {[%emt 0:00:15]} Nxe5 {[%emt 0:07:12]} 20. Bg3 {[%emt 0:00:20]} Nc4 {[%emt 0:01:00]} 21. Rxc4 {[%emt 0:00:24]} bxc4 {[%emt 0:00:14]} 22. Qxc4 {[%emt 0:00:08]} Bc8 {[%emt 0:08:05]} 23. Bd6 {[%emt 0:07:52]} Qd7 {[%emt 0:00:23]} 24. Nc3 {[%emt 0:00:12]} Re8 {[%emt 0:04:08]} 25. Be5 {[%emt 0:09:39]} Qf7 {[%emt 0:04:37]} 26. Qh4 {[%emt 0:12:41]} Bb7 {[%emt 0:01:53]} 27. Ne4 {[%emt 0:01:55]} fxe4 {[%emt 0:09:29]} 28. Bxe4 {[%emt 0:00:08]} h5 {[%emt 0:00:25]} 29. Qg5 {[%emt 0:09:23]} c5 {[%emt 0:00:30]} 30. Bg6 {[%emt 0:00:30]} Rad8 {[%emt 0:01:08]} 31. Qxh5+ {[%emt 0:00:33]} Kg8 {[%emt 0:00:01]} 32. Bxf7+ {[%emt 0:00:14]} Kf8 {[%emt 0:00:01]} 33. Re1 {[%emt 0:00:31]} Re7 {[%emt 0:00:14]} 34. Bg6 {[%emt 0:00:07]} Red7 {[%emt 0:00:23]} 35. Qh8+ {[%emt 0:00:09]} 1-0

[Event "Romanian Women Championship 2024"]
[Site "Eforie Nord"]
[Date "2024.02.25"]
[Round "2.12"]
[White "Peptan, Corina-Isabela"]
[Black "Chicarosie, Ioana-Bianca"]
[Result "1-0"]
[ECO "E61"]
[WhiteElo "2314"]
[BlackElo "1705"]
[Annotator "RC"]
[PlyCount "101"]
[EventDate "2024.02.24"]
[EventType "swiss"]
[EventCountry "ROU"]
[SourceTitle "playchess.com"]
[Source "ChessBase"]
[SourceQuality "1"]
[TimeControl "40/5400+30:900+30"]

1. d4 {[%emt 0:00:45]} Nf6 {[%emt 0:00:04]} 2. c4 {[%emt 0:00:03]} g6 {[%emt 0:00:22]} 3. g3 {[%emt 0:00:55]} Bg7 {[%emt 0:00:06]} 4. Bg2 {[%emt 0:00:05]} O-O {[%emt 0:00:19]} 5. Nc3 {[%emt 0:00:03]} d6 {[%emt 0:00:05]} 6. e3 {[%emt 0:01:09]} Nbd7 {[%emt 0:00:20]} 7. Nge2 {[%emt 0:00:05]} e5 {[%emt 0:00:45]} 8. O-O {[%emt 0:00:12]} c6 {[%emt 0:01:49]} 9. b3 {[%emt 0:02:07]} Re8 {[%emt 0:02:22]} 10. Qc2 {[%emt 0:05:04]} Qc7 {[%emt 0:05:30]} 11. Ba3 {[%emt 0:02:28]} Bf8 {[%emt 0:11:43]} 12. Rfd1 {[%emt 0:02:15]} Qa5 {[%emt 0:11:06]} 13. Bb2 {[%emt 0:01:59]} exd4 {[%emt 0:02:31]} 14. Rxd4 {[%emt 0:00:51]} Ne5 {[%emt 0:01:09]} 15. Qd2 {[%emt 0:07:00]} Qc7 {[%emt 0:08:58]} 16. f4 {[%emt 0:19:01]} Neg4 {[%emt 0:07:14]} 17. e4 {[%emt 0:01:19]} d5 {[%emt 0:02:47]} 18. h3 {[%emt 0:01:45]} Nh6 {[%emt 0:05:06]} 19. cxd5 {[%emt 0:12:38]} Bc5 {[%emt 0:03:48]} 20. Na4 {[%emt 0:02:37]} Bxd4+ {[%emt 0:06:49]} 21. Qxd4 {[%emt 0:00:06]} Qd8 {[%emt 0:00:18]} 22. Qxf6 {[%emt 0:08:26]} Qxf6 {[%emt 0:00:07]} 23. Bxf6 {[%emt 0:00:04]} cxd5 {[%emt 0:00:55]} 24. Nac3 {[%emt 0:00:50]} dxe4 {[%emt 0:02:40]} 25. Nd5 {[%emt 0:00:08]} Rb8 {[%emt 0:06:24]} 26. Be5 {[%emt 0:02:01]} Rxe5 {[%emt 0:01:22]} 27. fxe5 {[%emt 0:00:02]} Be6 {[%emt 0:00:29]} 28. Nf6+ {[%emt 0:00:18]} Kg7 {[%emt 0:00:20]} 29. Nxe4 {[%emt 0:00:09]} Nf5 {[%emt 0:00:48]} 30. Nc5 {[%emt 0:00:08]} Bc8 {[%emt 0:02:52]} 31. Kf2 {[%emt 0:01:42]} b6 {[%emt 0:00:19]} 32. Ne4 {[%emt 0:00:01]} Ba6 {[%emt 0:00:29]} 33. Nd6 {[%emt 0:01:02]} Bxe2 {[%emt 0:01:03]} 34. Nxf5+ {[%emt 0:00:07]} gxf5 {[%emt 0:00:05]} 35. Kxe2 {[%emt 0:00:04]} Re8 {[%emt 0:00:06]} 36. Rd1 {[%emt 0:00:08]} Rxe5+ {[%emt 0:00:10]} 37. Kf2 {[%emt 0:00:02]} Ra5 {[%emt 0:00:25]} 38. a4 {[%emt 0:00:08]} b5 {[%emt 0:00:29]} 39. Rd5 {[%emt 0:00:05]} Kg6 {[%emt 0:00:58]} 40. Bf1 {[%emt 0:00:00]} Ra6 {[%emt 0:00:00]} 41. Bxb5 {[%emt 0:00:31]} Rb6 {[%emt 0:00:49]} 42. a5 {[%emt 0:00:15]} Rb7 {[%emt 0:00:18]} 43. a6 {[%emt 0:00:18]} Rb6 {[%emt 0:00:38]} 44. Bc4 {[%emt 0:00:06]} Rc6 {[%emt 0:00:49]} 45. Kf3 {[%emt 0:00:15]} Rc7 {[%emt 0:00:32]} 46. Kf4 {[%emt 0:00:10]} f6 {[%emt 0:00:32]} 47. Rxf5 {[%emt 0:00:10]} Re7 {[%emt 0:00:20]} 48. Rc5 {[%emt 0:00:12]} h6 {[%emt 0:00:25]} 49. Bd3+ {[%emt 0:00:06]} Kg7 {[%emt 0:00:07]} 50. Rb5 {[%emt 0:00:06]} Rd7 {[%emt 0:00:18]} 51. Rb7 {[%emt 0:00:05]} 1-0

[Event "Romanian Women Championship 2024"]
[Site "Eforie Nord"]
[Date "2024.02.26"]
[Round "3.1"]
[White "Sandu, Mihaela"]
[Black "Trifoi, Mihaela-Ioana"]
[Result "1/2-1/2"]
[ECO "B12"]
[WhiteElo "2265"]
[BlackElo "2003"]
[Annotator "TA"]
[PlyCount "59"]
[EventDate "2024.02.24"]
[EventType "swiss"]
[EventCountry "ROU"]
[SourceTitle "playchess.com"]
[Source "ChessBase"]
[SourceQuality "1"]
[TimeControl "40/5400+30:900+30"]

{[%evp 9,59,10,30,9,41,37,52,43,56,31,12,36,37,27,45,27,14,14,45,43,33,14,89,83,78,90,88,81,89,82,120,81,257,254,218,77,77,83,93,53,35,0,8,27,21,22,25,4,14,-133,-132,-115]} 1. e4 {[%emt 0:00:59]} c6 {[%emt 0:04:54]} 2. d4 {[%emt 0:00:24]} d5 {[%emt 0:00:06]} 3. e5 {[%emt 0:00:12]} Bf5 {[%emt 0:00:09]} 4. h4 {[%emt 0:00:21]} h5 {[%emt 0:00:08]} 5. Bd3 {[%emt 0:00:35]} Qd7 {[%emt 0:00:07]} 6. c3 {[%emt 0:00:35]} c5 {[%emt 0:11:52]} 7. dxc5 {[%emt 0:01:34]} Nc6 {[%emt 0:00:36]} 8. Nf3 {[%emt 0:00:48] White is slightly better.} Bg4 {[%emt 0:00:25]} 9. Bf4 {[%emt 0:03:09]} e6 {[%emt 0:01:44]} 10. b4 {[%emt 0:01:34][%cal Bb2b4,Bb4b5][%mdl 32]} a5 $1 {[%emt 0:00:28]} 11. b5 {[%emt 0:21:57]} Na7 {[%emt 0:04:08]} 12. a4 {[%emt 0:03:48] aiming for Be3.} Bxc5 {[%emt 0:00:48]} 13. Nbd2 {[%emt 0:00:06]} Ne7 {[%emt 0:06:19]} 14. Nb3 $36 {[%emt 0:01:32][%csl LRa5,LRc5][%mdl 2048] White fights for an advantage.} Bb6 {[%emt 0:00:19]} 15. Nbd4 {[%emt 0:01:10]} O-O {[%emt 0:03:34]} (15... Bxd4 $11 {remains equal.} 16. cxd4 Nac8) 16. Qd2 $16 {[%emt 0:01:46]} Nac8 {[%emt 0:02:30]} 17. Nh2 {[%emt 0:14:46] White is more active.} Bf5 {[%emt 0:17:12]} 18. Nxf5 {[%emt 0:02:50]} exf5 {[%emt 0:00:13]} 19. Nf3 {[%emt 0:08:21]} Ng6 {[%emt 0:04:57]} 20. Bh2 {[%emt 0:10:00]} Qe7 $2 {[%emt 0:09:45]} (20... f6 $16) 21. Bxf5 $18 {[%emt 0:03:01]} Nxh4 {[%emt 0:00:33] [#]} 22. Nxh4 {[%emt 0:00:06]} (22. Bc2 $1 $18) 22... Qxh4 $16 {[%emt 0:00:20]} 23. O-O {[%emt 0:01:43][%cal Oh2f4]} (23. Qxd5 $2 {perishes.} Qxf2+ 24. Kd1 Rd8 $19 (24... Qxf5 $2 25. Qf3 $19)) 23... Ne7 {[%emt 0:13:25]} 24. Bc2 {[%emt 0:01:49]} Rac8 {[%emt 0:03:26]} 25. Kh1 {[%emt 0:01:11]} d4 {[%emt 0:05:40]} 26. Qd3 {[%emt 0:02:19]} g6 $1 {[%emt 0:00:27]} 27. c4 {[%emt 0:00:29]} Nf5 {[%emt 0:01:44]} 28. Qf3 {[%emt 0:05:50]} Nh6 {[%emt 0:02:08]} 29. g3 {[%emt 0:09:00]} (29. Kg1 $11) 29... Qh3 $17 {[%emt 0:02:54]} 30. Qg2 {[%emt 0:02:39] Weighted Error Value: White=0.26 (precise) /Black=0.17 (very precise) .  Loses game:     	---       	Black=1      Mistake:       	White=2     	Black=1      Inaccurate:     	White=3     	Black=3      OK:         	White=13    	Black=6      Best:        	White=1     	Black=2      Strong:       	---       	Black=2} 1/2-1/2

[Event "Romanian Women Championship 2024"]
[Site "Eforie Nord"]
[Date "2024.02.26"]
[Round "3.2"]
[White "Lehaci, Miruna-Daria"]
[Black "Obada, Ema"]
[Result "1/2-1/2"]
[ECO "D35"]
[WhiteElo "2227"]
[BlackElo "1969"]
[Annotator "RC"]
[PlyCount "169"]
[EventDate "2024.02.24"]
[EventType "swiss"]
[EventCountry "ROU"]
[SourceTitle "playchess.com"]
[Source "ChessBase"]
[SourceQuality "1"]
[TimeControl "40/5400+30:900+30"]

1. d4 {[%emt 0:00:04]} Nf6 {[%emt 0:00:07]} 2. c4 {[%emt 0:00:06]} e6 {[%emt 0:00:05]} 3. Nc3 {[%emt 0:00:05]} d5 {[%emt 0:04:03]} 4. cxd5 {[%emt 0:05:44]} exd5 {[%emt 0:00:14]} 5. Bg5 {[%emt 0:00:11]} Be6 {[%emt 0:03:28]} 6. e3 {[%emt 0:02:11]} Nbd7 {[%emt 0:04:46]} 7. Bd3 {[%emt 0:03:28]} h6 {[%emt 0:15:28]} 8. Bh4 {[%emt 0:02:45]} c5 {[%emt 0:21:51]} 9. Nge2 {[%emt 0:10:54]} Be7 {[%emt 0:08:38]} 10. Bc2 {[%emt 0:06:24]} O-O {[%emt 0:02:51]} 11. O-O {[%emt 0:05:15]} Rc8 {[%emt 0:03:34]} 12. h3 {[%emt 0:59:23]} cxd4 {[%emt 0:02:17]} 13. Nxd4 {[%emt 0:00:00]} Ne5 {[%emt 0:09:03]} 14. Nce2 {[%emt 0:00:00]} Nc6 {[%emt 0:11:41]} 15. Nf5 {[%emt 0:00:00]} Qd7 {[%emt 0:03:13]} 16. Nxe7+ {[%emt 0:00:00]} Qxe7 {[%emt 0:00:02]} 17. Rc1 {[%emt 0:00:00]} Rfd8 {[%emt 0:01:06]} 18. Nd4 {[%emt 0:00:00]} Nxd4 {[%emt 0:02:59]} 19. Qxd4 {[%emt 0:00:00]} g5 {[%emt 0:00:14]} 20. Bg3 {[%emt 0:00:00]} Rc4 {[%emt 0:00:06]} 21. Qd3 {[%emt 0:00:00]} Rdc8 {[%emt 0:00:43]} 22. Be5 {[%emt 0:00:00]} Ne4 {[%emt 0:01:23]} 23. b3 {[%emt 0:00:00]} R4c6 {[%emt 0:00:52]} 24. Bb2 {[%emt 0:00:00]} f6 {[%emt 0:02:19]} 25. Bb1 {[%emt 0:00:00]} Rxc1 {[%emt 0:00:44]} 26. Bxc1 {[%emt 0:00:00]} Rc3 {[%emt 0:01:02]} 27. Qd1 {[%emt 0:00:17]} Bf7 {[%emt 0:00:34]} 28. Bb2 {[%emt 0:00:35]} Rc6 {[%emt 0:00:11]} 29. Qd3 {[%emt 0:00:38]} Be6 {[%emt 0:00:49]} 30. f3 {[%emt 0:01:00]} Nd6 {[%emt 0:00:30]} 31. Qg6+ {[%emt 0:02:23]} Qg7 {[%emt 0:00:09]} 32. Qxf6 {[%emt 0:00:41]} Qxf6 {[%emt 0:00:16]} 33. Bxf6 {[%emt 0:00:05]} Nf5 {[%emt 0:00:36]} 34. Kf2 {[%emt 0:00:19]} Kf7 {[%emt 0:00:41]} 35. Bb2 {[%emt 0:00:13]} a6 {[%emt 0:00:45]} 36. Rc1 {[%emt 0:00:47]} Rxc1 {[%emt 0:00:18]} 37. Bxc1 {[%emt 0:00:04]} Ne7 {[%emt 0:00:27]} 38. Bb2 {[%emt 0:02:02]} Nc6 {[%emt 0:00:11]} 39. g4 {[%emt 0:01:44]} Bd7 {[%emt 0:00:57]} 40. Kg3 {[%emt 0:00:00]} Ne7 {[%emt 0:00:00]} 41. f4 {[%emt 0:03:57]} Ng8 {[%emt 0:02:14]} 42. h4 {[%emt 0:01:34]} gxf4+ {[%emt 0:02:28]} 43. exf4 {[%emt 0:01:01]} Ne7 {[%emt 0:00:20]} 44. h5 {[%emt 0:01:17]} Ng8 {[%emt 0:01:14]} 45. Bg6+ {[%emt 0:00:59]} Kf8 {[%emt 0:00:34]} 46. g5 {[%emt 0:01:32]} a5 {[%emt 0:00:40]} 47. Ba3+ {[%emt 0:03:10]} Kg7 {[%emt 0:00:05]} 48. Bb2+ {[%emt 0:00:03]} Kf8 {[%emt 0:00:05]} 49. Bh7 {[%emt 0:02:01]} a4 {[%emt 0:02:35]} 50. g6 {[%emt 0:03:11]} Ne7 {[%emt 0:00:40]} 51. Ba3 {[%emt 0:00:40]} axb3 {[%emt 0:00:36]} 52. axb3 {[%emt 0:00:06]} Bf5 {[%emt 0:00:35]} 53. Kf2 {[%emt 0:02:46]} d4 {[%emt 0:03:07]} 54. Bc5 {[%emt 0:00:13]} d3 {[%emt 0:00:27]} 55. Ke3 {[%emt 0:00:50]} Ke8 {[%emt 0:00:32]} 56. Bxe7 {[%emt 0:00:46]} Kxe7 {[%emt 0:00:06]} 57. Bg8 {[%emt 0:00:04]} Kf6 {[%emt 0:00:52]} 58. Bd5 {[%emt 0:00:19]} b6 {[%emt 0:00:09]} 59. b4 {[%emt 0:00:55]} Bg4 {[%emt 0:00:22]} 60. Bf3 {[%emt 0:00:32]} Bf5 {[%emt 0:00:02]} 61. Kd4 {[%emt 0:00:45]} Ke6 {[%emt 0:09:04]} 62. Bd1 {[%emt 0:00:50]} Kf6 {[%emt 0:00:00]} 63. Kd5 {[%emt 0:00:25]} Bh3 {[%emt 0:00:00]} 64. Ke4 {[%emt 0:00:53]} Bf5+ {[%emt 0:00:00]} 65. Kd4 {[%emt 0:00:02]} Ke6 {[%emt 0:00:00]} 66. Ke3 {[%emt 0:01:07]} Kf6 {[%emt 0:00:00]} 67. Kd2 {[%emt 0:00:21]} Ke6 {[%emt 0:00:00]} 68. Bb3+ {[%emt 0:01:03]} Kf6 {[%emt 0:00:00]} 69. Bd1 {[%emt 0:00:03]} Ke6 {[%emt 0:00:00]} 70. Bb3+ {[%emt 0:00:03]} Kf6 {[%emt 0:00:00]} 71. Bc4 {[%emt 0:00:29]} Bg4 {[%emt 0:00:00]} 72. Bxd3 {[%emt 0:00:05]} Bxh5 {[%emt 0:00:00]} 73. f5 {[%emt 0:00:08]} Bf3 {[%emt 0:00:00]} 74. Ke3 {[%emt 0:00:04]} Bd5 {[%emt 0:00:15]} 75. Be4 {[%emt 0:00:11]} Bb3 {[%emt 0:00:39]} 76. Kf4 {[%emt 0:00:16]} Bc4 {[%emt 0:00:45]} 77. Bf3 {[%emt 0:01:30]} Bd3 {[%emt 0:00:08]} 78. Bg4 {[%emt 0:00:05]} Bc2 {[%emt 0:00:55]} 79. Ke3 {[%emt 0:00:50]} Bb3 {[%emt 0:00:25]} 80. Kd4 {[%emt 0:00:19]} Ba2 {[%emt 0:00:42]} 81. Kc3 {[%emt 0:01:14]} Bd5 {[%emt 0:00:18]} 82. Kd3 {[%emt 0:00:27]} Ke5 {[%emt 0:00:40]} 83. Ke3 {[%emt 0:01:17]} Bb3 {[%emt 0:00:24]} 84. g7 {[%emt 0:01:08]} Ba2 {[%emt 0:02:33]} 85. Bh3 {[%emt 0:00:08]} 1/2-1/2

[Event "Romanian Women Championship 2024"]
[Site "Eforie Nord"]
[Date "2024.02.26"]
[Round "3.3"]
[White "Stanciu, Andreea-Briana"]
[Black "Ciolacu, Alessia-Mihaela"]
[Result "0-1"]
[ECO "C49"]
[WhiteElo "1960"]
[BlackElo "2175"]
[Annotator "RC"]
[PlyCount "82"]
[EventDate "2024.02.24"]
[EventType "swiss"]
[EventCountry "ROU"]
[SourceTitle "playchess.com"]
[Source "ChessBase"]
[SourceQuality "1"]
[TimeControl "40/5400+30:900+30"]

1. e4 {[%emt 0:03:33]} e5 {[%emt 0:00:20]} 2. Nf3 {[%emt 0:00:19]} Nc6 {[%emt 0:00:08]} 3. Nc3 {[%emt 0:00:05]} Nf6 {[%emt 0:00:09]} 4. Bb5 {[%emt 0:00:06]} Bb4 {[%emt 0:00:41]} 5. O-O {[%emt 0:00:19]} O-O {[%emt 0:00:51]} 6. d3 {[%emt 0:00:07]} d6 {[%emt 0:06:58]} 7. Bxc6 {[%emt 0:00:26]} bxc6 {[%emt 0:00:05]} 8. Ne2 {[%emt 0:00:03]} Re8 {[%emt 0:06:57]} 9. h3 {[%emt 0:04:24]} d5 {[%emt 0:02:16]} 10. c3 {[%emt 0:01:37]} Bd6 {[%emt 0:04:33]} 11. Ng3 {[%emt 0:00:43]} h6 {[%emt 0:03:44]} 12. Qc2 {[%emt 0:07:27]} Nh7 {[%emt 0:08:09]} 13. c4 {[%emt 1:17:51]} Qf6 {[%emt 0:07:15]} 14. Nh2 {[%emt 0:00:00]} Be6 {[%emt 0:05:39]} 15. Be3 {[%emt 0:00:00]} d4 {[%emt 0:13:30]} 16. Bd2 {[%emt 0:00:00]} c5 {[%emt 0:03:06]} 17. Ng4 {[%emt 0:00:00]} Qg6 {[%emt 0:05:57]} 18. Qd1 {[%emt 0:00:00]} Rab8 {[%emt 0:08:06]} 19. b3 {[%emt 0:00:00]} Rf8 {[%emt 0:02:05]} 20. f4 {[%emt 0:00:00]} exf4 {[%emt 0:01:54]} 21. Bxf4 {[%emt 0:00:00]} Bxf4 {[%emt 0:01:10]} 22. Rxf4 {[%emt 0:00:00]} h5 {[%emt 0:00:46]} 23. Nf5 {[%emt 0:00:00]} Bxf5 {[%emt 0:02:15]} 24. Ne5 {[%emt 0:00:00]} Qd6 {[%emt 0:00:51]} 25. Rxf5 {[%emt 0:00:00]} g6 {[%emt 0:00:35]} 26. Rxh5 {[%emt 0:00:00]} gxh5 {[%emt 0:00:17]} 27. Qxh5 {[%emt 0:00:00]} Rbe8 {[%emt 0:09:45]} 28. Ng4 {[%emt 0:00:00]} Re6 {[%emt 0:00:19]} 29. Rf1 {[%emt 0:00:00]} Rg6 {[%emt 0:02:57]} 30. e5 {[%emt 0:00:00]} Qc6 {[%emt 0:01:14]} 31. Rf4 {[%emt 0:00:00]} a5 {[%emt 0:00:55]} 32. a4 {[%emt 0:00:00]} Rb8 {[%emt 0:01:37]} 33. e6 {[%emt 0:00:00]} Qxe6 {[%emt 0:00:52]} 34. Re4 {[%emt 0:00:00]} Qd6 {[%emt 0:00:52]} 35. Ne5 {[%emt 0:00:00]} Rg7 {[%emt 0:00:32]} 36. Rf4 {[%emt 0:00:00]} Re8 {[%emt 0:00:34]} 37. Rf5 {[%emt 0:00:00]} Re7 {[%emt 0:00:30]} 38. h4 {[%emt 0:00:36]} Nf6 {[%emt 0:00:23]} 39. Qf3 {[%emt 0:01:20]} Rxe5 {[%emt 0:00:17]} 40. Rxf6 {[%emt 0:00:00]} Re1+ {[%emt 0:00:00]} 41. Kf2 {[%emt 0:00:21]} Qe7 {[%emt 0:01:21]} 0-1

[Event "Romanian Women Championship 2024"]
[Site "Eforie Nord"]
[Date "2024.02.26"]
[Round "3.4"]
[White "Iordache, Alexia-Andreea"]
[Black "Cosma, Elena-Luminita"]
[Result "0-1"]
[ECO "C00"]
[WhiteElo "1769"]
[BlackElo "2236"]
[Annotator "RC"]
[PlyCount "136"]
[EventDate "2024.02.24"]
[EventType "swiss"]
[EventCountry "ROU"]
[SourceTitle "playchess.com"]
[Source "ChessBase"]
[SourceQuality "1"]
[TimeControl "40/5400+30:900+30"]

1. e4 {[%emt 0:00:03]} e6 {[%emt 0:00:12]} 2. d3 {[%emt 0:00:03]} d5 {[%emt 0:00:07]} 3. Nd2 {[%emt 0:00:04]} Nf6 {[%emt 0:00:28]} 4. Ngf3 {[%emt 0:00:06]} b6 {[%emt 0:00:12]} 5. e5 {[%emt 0:01:20]} Nfd7 {[%emt 0:00:05]} 6. d4 {[%emt 0:00:12]} c5 {[%emt 0:01:01]} 7. c3 {[%emt 0:00:07]} Be7 {[%emt 0:00:51]} 8. Bb5 {[%emt 0:00:14]} a6 {[%emt 0:04:11]} 9. Bd3 {[%emt 0:01:07]} a5 {[%emt 0:00:41]} 10. h4 {[%emt 0:04:14]} Ba6 {[%emt 0:00:48]} 11. Bxa6 {[%emt 0:00:54]} Nxa6 {[%emt 0:00:35]} 12. Nf1 {[%emt 0:00:09]} h6 {[%emt 0:01:33]} 13. Ng3 {[%emt 0:01:02]} b5 {[%emt 0:03:57]} 14. Nh5 {[%emt 0:15:53]} g6 {[%emt 0:00:18]} 15. Nf4 {[%emt 0:00:57]} Qb6 {[%emt 0:00:16]} 16. Be3 {[%emt 0:08:12]} Nc7 {[%emt 0:11:51]} 17. Qd2 {[%emt 0:07:09]} b4 {[%emt 0:04:28]} 18. c4 {[%emt 0:09:42]} dxc4 {[%emt 0:24:45]} 19. d5 {[%emt 0:00:20]} Nxd5 {[%emt 0:05:43]} 20. Nxd5 {[%emt 0:00:16]} exd5 {[%emt 0:00:04]} 21. Qxd5 {[%emt 0:00:19]} Ra7 {[%emt 0:03:49]} 22. Qxc4 {[%emt 0:05:16]} Qa6 {[%emt 0:00:31]} 23. Qe4 {[%emt 0:05:18]} Qb7 {[%emt 0:05:47]} 24. Qd3 {[%emt 0:09:51]} Ra6 {[%emt 0:03:14]} 25. Rd1 {[%emt 0:10:27]} Re6 {[%emt 0:00:45]} 26. Bf4 {[%emt 0:01:35]} Qc6 {[%emt 0:01:10]} 27. b3 {[%emt 0:04:48]} Nb6 {[%emt 0:08:49]} 28. O-O {[%emt 0:01:41]} Kf8 {[%emt 0:01:33]} 29. Be3 {[%emt 0:05:42]} Kg7 {[%emt 0:01:30]} 30. Qd2 {[%emt 0:01:08]} Qe4 {[%emt 0:09:15]} 31. Rfe1 {[%emt 0:02:10]} Qg4 {[%emt 0:00:25]} 32. Rc1 {[%emt 0:01:49]} g5 {[%emt 0:03:54]} 33. hxg5 {[%emt 0:02:25]} hxg5 {[%emt 0:00:05]} 34. Bxg5 {[%emt 0:00:17]} Rg6 {[%emt 0:00:47]} 35. Bf6+ {[%emt 0:01:29]} Bxf6 {[%emt 0:00:45]} 36. exf6+ {[%emt 0:00:03]} Kh7 {[%emt 0:00:07]} 37. g3 {[%emt 0:01:48]} Qxf3 {[%emt 0:00:11]} 38. Rxc5 {[%emt 0:00:37]} Qxf6 {[%emt 0:02:43]} 39. Rh5+ {[%emt 0:00:39]} Kg7 {[%emt 0:00:09]} 40. Rxh8 {[%emt 0:00:00]} Kxh8 {[%emt 0:00:00]} 41. Qe2 {[%emt 0:03:25]} Kg7 {[%emt 0:01:39]} 42. Qh5 {[%emt 0:01:58]} Rg5 {[%emt 0:10:34]} 43. Qh4 {[%emt 0:01:44]} Nd7 {[%emt 0:00:59]} 44. Kg2 {[%emt 0:08:21]} Qc6+ {[%emt 0:02:01]} 45. Kg1 {[%emt 0:01:04]} Rg6 {[%emt 0:02:13]} 46. Qd4+ {[%emt 0:00:15]} Nf6 {[%emt 0:00:24]} 47. Re5 {[%emt 0:02:11]} Qa8 {[%emt 0:01:29]} 48. Rh5 {[%emt 0:00:34]} Qf3 {[%emt 0:00:34]} 49. Rh4 {[%emt 0:00:17]} Qd5 {[%emt 0:00:34]} 50. Qxd5 {[%emt 0:00:13]} Nxd5 {[%emt 0:00:06]} 51. Rh5 {[%emt 0:00:05]} Rd6 {[%emt 0:00:14]} 52. f4 {[%emt 0:00:33]} Kg6 {[%emt 0:00:59]} 53. Rg5+ {[%emt 0:00:04]} Kf6 {[%emt 0:00:16]} 54. Re5 {[%emt 0:00:03]} Kg7 {[%emt 0:00:37]} 55. Rg5+ {[%emt 0:00:11]} Kf8 {[%emt 0:00:06]} 56. Kf2 {[%emt 0:00:39]} Ke7 {[%emt 0:00:08]} 57. Re5+ {[%emt 0:00:23]} Kd7 {[%emt 0:00:11]} 58. Kf3 {[%emt 0:00:17]} f6 {[%emt 0:00:24]} 59. Rh5 {[%emt 0:00:14]} Kc6 {[%emt 0:00:11]} 60. g4 {[%emt 0:00:11]} Re6 {[%emt 0:01:15]} 61. g5 {[%emt 0:01:42]} fxg5 {[%emt 0:02:08]} 62. fxg5 {[%emt 0:01:03]} Re3+ {[%emt 0:00:07]} 63. Kf2 {[%emt 0:00:15]} Re2+ {[%emt 0:01:20]} 64. Kf3 {[%emt 0:01:39]} Rxa2 {[%emt 0:00:17]} 65. g6 {[%emt 0:00:23]} Ra1 {[%emt 0:00:45]} 66. Kf2 {[%emt 0:00:48]} Ne7 {[%emt 0:00:23]} 67. g7 {[%emt 0:00:27]} a4 {[%emt 0:00:21]} 68. Ra5 {[%emt 0:00:31]} Ra2+ {[%emt 0:00:13]} 0-1

[Event "Romanian Women Championship 2024"]
[Site "Eforie Nord"]
[Date "2024.02.26"]
[Round "3.5"]
[White "Cosman, Andreea-Marioara"]
[Black "Pirvulescu, Ekaterina"]
[Result "1-0"]
[ECO "D27"]
[WhiteElo "2108"]
[BlackElo "2091"]
[Annotator "RC"]
[PlyCount "63"]
[EventDate "2024.02.24"]
[EventType "swiss"]
[EventCountry "ROU"]
[SourceTitle "playchess.com"]
[Source "ChessBase"]
[SourceQuality "1"]
[TimeControl "40/5400+30:900+30"]

1. d4 {[%emt 0:00:03]} d5 {[%emt 0:00:08]} 2. c4 {[%emt 0:00:06]} dxc4 {[%emt 0:00:04]} 3. Nf3 {[%emt 0:00:05]} Nf6 {[%emt 0:00:04]} 4. e3 {[%emt 0:00:06]} e6 {[%emt 0:00:03]} 5. Bxc4 {[%emt 0:00:07]} a6 {[%emt 0:00:07]} 6. O-O {[%emt 0:00:08]} c5 {[%emt 0:00:12]} 7. b3 {[%emt 0:00:06]} cxd4 {[%emt 0:00:05]} 8. Nxd4 {[%emt 0:00:07]} Be7 {[%emt 0:00:09]} 9. Bb2 {[%emt 0:00:40]} O-O {[%emt 0:00:06]} 10. Nd2 {[%emt 0:00:41]} b5 {[%emt 0:00:12]} 11. Be2 {[%emt 0:00:44]} Bb7 {[%emt 0:00:20]} 12. a4 {[%emt 0:02:23]} Nc6 {[%emt 0:01:07]} 13. Rc1 {[%emt 0:08:33]} Qd7 {[%emt 0:07:24]} 14. N2f3 {[%emt 0:02:38]} bxa4 {[%emt 0:06:07]} 15. Rxc6 {[%emt 0:03:04]} Bxc6 {[%emt 0:02:59]} 16. Ne5 {[%emt 0:00:08]} Qc7 {[%emt 0:10:56]} 17. Ndxc6 {[%emt 0:05:45]} Bd6 {[%emt 0:02:35]} 18. Bf3 {[%emt 0:04:34]} a3 {[%emt 0:03:18]} 19. Bc3 {[%emt 0:08:49]} Nd5 {[%emt 0:05:44]} 20. Ba5 {[%emt 0:01:38]} Qb7 {[%emt 0:01:24]} 21. e4 {[%emt 0:02:44]} Bxe5 {[%emt 0:01:30]} 22. Nxe5 {[%emt 0:01:51]} Qb5 {[%emt 0:03:53]} 23. exd5 {[%emt 0:02:29]} Qxa5 {[%emt 0:00:29]} 24. Nc6 {[%emt 0:00:10]} Qc7 {[%emt 0:15:19]} 25. d6 {[%emt 0:00:09]} Qd7 {[%emt 0:00:06]} 26. Ne7+ {[%emt 0:01:12]} Kh8 {[%emt 0:00:05]} 27. Bc6 {[%emt 0:00:09]} Qa7 {[%emt 0:01:11]} 28. Bxa8 {[%emt 0:00:18]} Qxa8 {[%emt 0:00:06]} 29. Qa1 {[%emt 0:02:47]} Rd8 {[%emt 0:02:24]} 30. Qxa3 {[%emt 0:00:33]} Qb7 {[%emt 0:00:07]} 31. h3 {[%emt 0:02:41]} f6 {[%emt 0:01:47]} 32. Rc1 {[%emt 0:02:08]} 1-0